[Event "Un Rapid per cominciare!"]
[Site "Chess.com"]
[Date "2020.04.10"]
[Round "1"]
[White "rob_fio"]
[Black "Niklas1205"]
[Result "1-0"]
[WhiteElo "1615"]
[BlackElo "1150"]
[TimeControl "720+3"]
[EndTime "11:29:40 PDT"]
[Termination "rob_fio ha vinto per scaccomatto"]

1. d4 {[%clk 0:12:01.2]} 1... d5 {[%clk 0:12:02.9]} 2. e3 {[%clk 0:12:02.4]}
2... f6 {[%clk 0:11:59.9]} 3. Bd3 {[%clk 0:12:01.4]} 3... e5 {[%clk 0:11:59.3]}
4. c3 {[%clk 0:12:02]} 4... b6 {[%clk 0:11:58.2]} 5. Nd2 {[%clk 0:12:02.5]} 5...
c5 {[%clk 0:11:59.4]} 6. Bc2 {[%clk 0:12:00.9]} 6... cxd4 {[%clk 0:12:00.1]} 7.
cxd4 {[%clk 0:12:01.1]} 7... exd4 {[%clk 0:12:00.2]} 8. exd4 {[%clk 0:12:04]}
8... Qe7+ {[%clk 0:11:58.8]} 9. Ne2 {[%clk 0:12:05.7]} 9... Qd8 {[%clk
0:11:59.3]} 10. O-O {[%clk 0:12:07.4]} 10... Nc6 {[%clk 0:11:47]} 11. Re1 {[%clk
0:12:07.5]} 11... f5 {[%clk 0:11:38.5]} 12. Bb3 {[%clk 0:12:09.2]} 12... Nb4
{[%clk 0:11:35.4]} 13. Nf4+ {[%clk 0:12:04.3]} 13... Be7 {[%clk 0:11:34.3]} 14.
Qh5+ {[%clk 0:11:56.7]} 14... g6 {[%clk 0:11:34.1]} 15. Nxg6 {[%clk 0:11:55.9]}
15... hxg6 {[%clk 0:11:32.4]} 16. Qxh8 {[%clk 0:11:55.2]} 16... Be6 {[%clk
0:11:30.3]} 17. Rxe6 {[%clk 0:11:52.4]} 17... Qd7 {[%clk 0:11:15.3]} 18. Qxg8#
{[%clk 0:11:41]} 1-0

[Event "Un Rapid per cominciare!"]
[Site "Chess.com"]
[Date "2020.04.10"]
[Round "1"]
[White "lucatarozzi"]
[Black "Delsoldato03"]
[Result "0-1"]
[WhiteElo "1179"]
[BlackElo "1261"]
[TimeControl "720+3"]
[EndTime "11:36:03 PDT"]
[Termination "Delsoldato03 ha vinto per abbandono"]

1. e4 {[%clk 0:11:51.5]} 1... e5 {[%clk 0:12:00.7]} 2. Nf3 {[%clk 0:11:51.4]}
2... Nc6 {[%clk 0:12:02.3]} 3. Bb5 {[%clk 0:11:50.6]} 3... a6 {[%clk 0:12:04.3]}
4. Bxc6 {[%clk 0:11:34.8]} 4... dxc6 {[%clk 0:12:03.2]} 5. O-O {[%clk
0:11:33.3]} 5... Bd6 {[%clk 0:11:59.4]} 6. Re1 {[%clk 0:11:29.9]} 6... Nf6
{[%clk 0:11:59.3]} 7. d4 {[%clk 0:11:29.3]} 7... Bg4 {[%clk 0:11:13.6]} 8. h3
{[%clk 0:11:10]} 8... Bxf3 {[%clk 0:11:07.1]} 9. Qxf3 {[%clk 0:11:10.5]} 9...
Qd7 {[%clk 0:10:49.9]} 10. Bg5 {[%clk 0:11:02.6]} 10... O-O-O {[%clk 0:09:51.9]}
11. Bxf6 {[%clk 0:10:56]} 11... gxf6 {[%clk 0:09:51.7]} 12. d5 {[%clk
0:10:56.7]} 12... cxd5 {[%clk 0:09:29.4]} 13. exd5 {[%clk 0:10:56.6]} 13... f5
{[%clk 0:09:20.6]} 14. c4 {[%clk 0:10:57.2]} 14... e4 {[%clk 0:09:13.8]} 15. Qe2
{[%clk 0:10:57.3]} 15... Rhg8 {[%clk 0:08:53.9]} 16. Nc3 {[%clk 0:10:42.4]}
16... Rg6 {[%clk 0:08:35.1]} 17. b3 {[%clk 0:10:23]} 17... Rdg8 {[%clk
0:08:30.4]} 18. g3 {[%clk 0:10:02.7]} 18... f4 {[%clk 0:08:20.5]} 19. Nxe4
{[%clk 0:09:47.5]} 19... fxg3 {[%clk 0:08:06.9]} 20. Nxd6+ {[%clk 0:09:37]}
20... Qxd6 {[%clk 0:07:49.2]} 21. fxg3 {[%clk 0:09:02.6]} 21... Qxg3+ {[%clk
0:07:45.8]} 22. Kf1 {[%clk 0:09:04.3]} 0-1

[Event "Un Rapid per cominciare!"]
[Site "Chess.com"]
[Date "2020.04.10"]
[Round "1"]
[White "GuGe14"]
[Black "MarcoCiva"]
[Result "1-0"]
[WhiteElo "1795"]
[BlackElo "1952"]
[TimeControl "720+3"]
[EndTime "11:39:45 PDT"]
[Termination "GuGe14 ha vinto per abbandono"]

1. e4 {[%clk 0:12:02.9]} 1... c5 {[%clk 0:11:59]} 2. Nc3 {[%clk 0:11:56.9]} 2...
Nc6 {[%clk 0:11:53.5]} 3. f4 {[%clk 0:11:45.7]} 3... e6 {[%clk 0:11:46.7]} 4.
Bc4 {[%clk 0:11:31.5]} 4... Nge7 {[%clk 0:11:41]} 5. d3 {[%clk 0:11:24]} 5... g6
{[%clk 0:11:42.4]} 6. Nf3 {[%clk 0:11:19]} 6... Bg7 {[%clk 0:11:43.7]} 7. Bb3
{[%clk 0:11:08.8]} 7... O-O {[%clk 0:11:35.5]} 8. O-O {[%clk 0:10:53.8]} 8...
Nd4 {[%clk 0:11:35.3]} 9. Nxd4 {[%clk 0:10:37.7]} 9... Bxd4+ {[%clk 0:11:36.3]}
10. Kh1 {[%clk 0:10:33.8]} 10... e5 {[%clk 0:11:36.6]} 11. f5 {[%clk 0:08:40.8]}
11... Bxc3 {[%clk 0:10:43.9]} 12. bxc3 {[%clk 0:08:39.1]} 12... d6 {[%clk
0:10:20.3]} 13. Bg5 {[%clk 0:07:23.6]} 13... gxf5 {[%clk 0:09:53.9]} 14. exf5
{[%clk 0:07:20.3]} 14... Kh8 {[%clk 0:08:32.7]} 15. Bf6+ {[%clk 0:06:28]} 15...
Kg8 {[%clk 0:08:13]} 16. Qg4+ {[%clk 0:06:07.1]} 16... Ng6 {[%clk 0:08:10.2]}
17. Bxd8 {[%clk 0:06:07.2]} 17... Bxf5 {[%clk 0:07:40.7]} 18. Qxf5 {[%clk
0:06:00.9]} 18... Raxd8 {[%clk 0:07:41.2]} 19. Bxf7+ {[%clk 0:05:43.8]} 19...
Rxf7 {[%clk 0:07:42.3]} 20. Qxf7+ {[%clk 0:05:45.5]} 20... Kh8 {[%clk
0:07:43.9]} 21. Rab1 {[%clk 0:05:45]} 21... Rf8 {[%clk 0:07:44.3]} 22. Qxf8+
{[%clk 0:05:44.7]} 22... Nxf8 {[%clk 0:07:45.9]} 23. Rxf8+ {[%clk 0:05:47.4]}
23... Kg7 {[%clk 0:07:47.8]} 24. Rb8 {[%clk 0:05:50.3]} 24... b6 {[%clk
0:07:48.9]} 25. Rb7+ {[%clk 0:05:50.8]} 25... Kf6 {[%clk 0:07:49.8]} 26. Rxa7
{[%clk 0:05:53.7]} 1-0

[Event "Un Rapid per cominciare!"]
[Site "Chess.com"]
[Date "2020.04.10"]
[Round "1"]
[White "markk000"]
[Black "lionblu1"]
[Result "1-0"]
[WhiteElo "1527"]
[BlackElo "1134"]
[TimeControl "720+3"]
[EndTime "11:40:48 PDT"]
[Termination "markk000 ha vinto per abbandono"]

1. d4 {[%clk 0:12:02.8]} 1... Nf6 {[%clk 0:11:57.3]} 2. c4 {[%clk 0:12:05.3]}
2... e6 {[%clk 0:11:58]} 3. Nc3 {[%clk 0:12:07.9]} 3... Bb4 {[%clk 0:11:58.4]}
4. Bg5 {[%clk 0:12:07.4]} 4... c5 {[%clk 0:11:52.2]} 5. e3 {[%clk 0:12:08.4]}
5... O-O {[%clk 0:11:44.1]} 6. Nf3 {[%clk 0:12:05.3]} 6... d6 {[%clk 0:11:40.1]}
7. Bd3 {[%clk 0:12:04.9]} 7... Nbd7 {[%clk 0:11:33.3]} 8. O-O {[%clk 0:12:06.2]}
8... Bxc3 {[%clk 0:11:25.7]} 9. bxc3 {[%clk 0:12:07.4]} 9... b6 {[%clk
0:11:03.9]} 10. d5 {[%clk 0:11:58.4]} 10... e5 {[%clk 0:10:58.6]} 11. Nd2 {[%clk
0:11:47.2]} 11... h6 {[%clk 0:10:43.4]} 12. Bh4 {[%clk 0:11:45.6]} 12... Re8
{[%clk 0:10:19.9]} 13. Qc2 {[%clk 0:11:40.3]} 13... g5 {[%clk 0:10:07.6]} 14.
Bg3 {[%clk 0:11:38.7]} 14... Nh5 {[%clk 0:09:59]} 15. Ne4 {[%clk 0:11:26.1]}
15... Qe7 {[%clk 0:09:35.2]} 16. f4 {[%clk 0:10:45.6]} 16... Nxg3 {[%clk
0:09:14.5]} 17. Nxg3 {[%clk 0:10:48.5]} 17... Nf6 {[%clk 0:08:14.7]} 18. fxg5
{[%clk 0:10:22.5]} 18... hxg5 {[%clk 0:08:02.1]} 19. Bf5 {[%clk 0:10:24]} 19...
e4 {[%clk 0:07:38.4]} 20. Bxc8 {[%clk 0:09:31.4]} 20... Raxc8 {[%clk 0:07:30.9]}
21. Qf2 {[%clk 0:09:32.9]} 21... Ng4 {[%clk 0:07:14.3]} 22. Qe2 {[%clk
0:09:24.3]} 22... Ne5 {[%clk 0:06:39.9]} 23. Qh5 {[%clk 0:08:58]} 23... f6
{[%clk 0:06:20.2]} 24. Nf5 {[%clk 0:08:53.3]} 24... Qh7 {[%clk 0:05:57.3]} 25.
Qxh7+ {[%clk 0:08:53.7]} 25... Kxh7 {[%clk 0:05:57.9]} 26. Nxd6 {[%clk
0:08:56.3]} 26... Nd3 {[%clk 0:05:42.9]} 27. Nxc8 {[%clk 0:08:54.4]} 27... Rxc8
{[%clk 0:05:40]} 28. Rxf6 {[%clk 0:08:56.3]} 28... Kg7 {[%clk 0:05:19.4]} 29.
Raf1 {[%clk 0:08:56.8]} 29... Rh8 {[%clk 0:05:08.1]} 30. Rf7+ {[%clk 0:08:57.7]}
30... Kg6 {[%clk 0:05:04.4]} 31. g4 {[%clk 0:08:37.8]} 1-0

[Event "Un Rapid per cominciare!"]
[Site "Chess.com"]
[Date "2020.04.10"]
[Round "1"]
[White "Lorenzo_PR"]
[Black "SanSecondoPR"]
[Result "0-1"]
[WhiteElo "737"]
[BlackElo "1282"]
[TimeControl "720+3"]
[EndTime "11:43:50 PDT"]
[Termination "SanSecondoPR ha vinto per abbandono"]

1. e4 {[%clk 0:12:02.9]} 1... e5 {[%clk 0:12:00.7]} 2. Bc4 {[%clk 0:12:04.6]}
2... Nf6 {[%clk 0:12:01.2]} 3. d4 {[%clk 0:12:06.1]} 3... exd4 {[%clk
0:11:59.3]} 4. Nf3 {[%clk 0:12:08.2]} 4... Bc5 {[%clk 0:11:52.6]} 5. e5 {[%clk
0:12:09.9]} 5... Ne4 {[%clk 0:11:50]} 6. O-O {[%clk 0:12:05.6]} 6... d5 {[%clk
0:11:48.1]} 7. Re1 {[%clk 0:11:42.5]} 7... Bg4 {[%clk 0:11:38.2]} 8. Bxd5 {[%clk
0:10:41]} 8... Qxd5 {[%clk 0:11:35.3]} 9. Nc3 {[%clk 0:10:43.4]} 9... Qd7 {[%clk
0:11:24.3]} 10. Nxe4 {[%clk 0:10:43.9]} 10... Bb6 {[%clk 0:10:49.1]} 11. h3
{[%clk 0:10:45.4]} 11... Be6 {[%clk 0:10:46.3]} 12. Nfg5 {[%clk 0:10:13.5]}
12... O-O {[%clk 0:10:39.4]} 13. Qh5 {[%clk 0:09:44.1]} 13... h6 {[%clk
0:10:27.1]} 14. Nxe6 {[%clk 0:09:45.7]} 14... Qxe6 {[%clk 0:10:16.2]} 15. Bf4
{[%clk 0:09:32.1]} 15... Nd7 {[%clk 0:09:55.2]} 16. Kh1 {[%clk 0:08:33]} 16...
f5 {[%clk 0:09:28.2]} 17. exf6 {[%clk 0:08:06.9]} 17... Nxf6 {[%clk 0:09:12.4]}
18. Nxf6+ {[%clk 0:08:03.8]} 18... Qxf6 {[%clk 0:09:09.1]} 19. Bg3 {[%clk
0:07:10.7]} 19... d3 {[%clk 0:08:58.1]} 20. Qd5+ {[%clk 0:07:08.2]} 20... Kh8
{[%clk 0:08:49.3]} 21. Qxd3 {[%clk 0:07:05.6]} 21... Bxf2 {[%clk 0:08:16]} 22.
Bxf2 {[%clk 0:06:24.8]} 22... Qxf2 {[%clk 0:08:09.8]} 23. Rf1 {[%clk 0:06:25.6]}
23... Qc5 {[%clk 0:08:02.7]} 24. Rad1 {[%clk 0:06:06.7]} 24... Rae8 {[%clk
0:07:53.7]} 25. c3 {[%clk 0:05:47.9]} 25... Qe7 {[%clk 0:07:18.4]} 26. Rxf8+
{[%clk 0:05:36.3]} 26... Rxf8 {[%clk 0:07:08.5]} 27. Qd7 {[%clk 0:05:31.7]}
27... Qe2 {[%clk 0:06:41.9]} 28. Qd2 {[%clk 0:04:09.2]} 28... Rf1+ {[%clk
0:06:23.7]} 29. Kh2 {[%clk 0:03:49.3]} 29... Qxd1 {[%clk 0:06:10.6]} 0-1

[Event "Un Rapid per cominciare!"]
[Site "Chess.com"]
[Date "2020.04.10"]
[Round "1"]
[White "Piccolorso"]
[Black "sergiodone"]
[Result "1-0"]
[WhiteElo "1463"]
[BlackElo "1385"]
[TimeControl "720+3"]
[EndTime "11:44:19 PDT"]
[Termination "Piccolorso ha vinto per abbandono"]

1. e4 {[%clk 0:11:58.3]} 1... c5 {[%clk 0:12:00.6]} 2. Nf3 {[%clk 0:11:58.2]}
2... d6 {[%clk 0:12:01.2]} 3. d4 {[%clk 0:11:58.3]} 3... cxd4 {[%clk 0:12:02.1]}
4. Nxd4 {[%clk 0:11:59.4]} 4... e6 {[%clk 0:12:04]} 5. Nc3 {[%clk 0:11:55.1]}
5... a6 {[%clk 0:12:04.1]} 6. Be2 {[%clk 0:11:30]} 6... Be7 {[%clk 0:12:04.9]}
7. Be3 {[%clk 0:11:28.9]} 7... Qc7 {[%clk 0:11:58.9]} 8. Qd2 {[%clk 0:11:15.1]}
8... Nf6 {[%clk 0:11:55.5]} 9. f3 {[%clk 0:10:58.4]} 9... Nbd7 {[%clk
0:11:53.7]} 10. O-O-O {[%clk 0:10:29.9]} 10... b5 {[%clk 0:11:54.2]} 11. g4
{[%clk 0:10:02.7]} 11... Bb7 {[%clk 0:11:55.2]} 12. h3 {[%clk 0:08:46.2]} 12...
Rc8 {[%clk 0:11:53.1]} 13. Ndxb5 {[%clk 0:07:32.6]} 13... axb5 {[%clk 0:11:50]}
14. Nxb5 {[%clk 0:07:33.3]} 14... Qb8 {[%clk 0:11:49.2]} 15. e5 {[%clk
0:07:18.7]} 15... Nxe5 {[%clk 0:11:46.5]} 16. Nxd6+ {[%clk 0:06:48.6]} 16...
Bxd6 {[%clk 0:11:42.2]} 17. Qxd6 {[%clk 0:06:49.8]} 17... Nxf3 {[%clk
0:11:25.6]} 18. Bb5+ {[%clk 0:06:50.7]} 18... Bc6 {[%clk 0:11:22.1]} 19. Bxc6+
{[%clk 0:06:50.3]} 19... Rxc6 {[%clk 0:10:01.6]} 20. Qxc6+ {[%clk 0:06:51]}
20... Kf8 {[%clk 0:09:43.4]} 21. Bc5+ {[%clk 0:06:51.9]} 21... Kg8 {[%clk
0:09:45.1]} 22. Qb6 {[%clk 0:04:14.8]} 22... h6 {[%clk 0:09:28.9]} 23. Qxb8+
{[%clk 0:04:12.5]} 23... Kh7 {[%clk 0:09:23.6]} 24. Qc7 {[%clk 0:03:56.6]} 24...
Ng5 {[%clk 0:09:00.6]} 25. Be7 {[%clk 0:03:57.7]} 25... Nd5 {[%clk 0:08:58.2]}
26. Qa7 {[%clk 0:03:51.9]} 26... Ne4 {[%clk 0:08:15.9]} 27. Rdf1 {[%clk
0:03:44.9]} 27... Nef6 {[%clk 0:08:11.2]} 28. Bxf6 {[%clk 0:03:45.9]} 28... Nxf6
{[%clk 0:08:10.6]} 29. Rhg1 {[%clk 0:03:46.5]} 29... Kg6 {[%clk 0:07:13.7]} 30.
h4 {[%clk 0:03:47.6]} 30... Rf8 {[%clk 0:06:54.3]} 31. Qe3 {[%clk 0:03:47.3]}
31... Kh7 {[%clk 0:06:52.5]} 32. g5 {[%clk 0:03:47.2]} 32... hxg5 {[%clk
0:06:49.2]} 33. Qxg5 {[%clk 0:03:37.3]} 33... Rg8 {[%clk 0:06:41.5]} 34. Rxf6
{[%clk 0:03:26.7]} 1-0

[Event "Un Rapid per cominciare!"]
[Site "Chess.com"]
[Date "2020.04.10"]
[Round "1"]
[White "caramante"]
[Black "francesco_visen"]
[Result "0-1"]
[WhiteElo "1137"]
[BlackElo "1552"]
[TimeControl "720+3"]
[EndTime "11:45:41 PDT"]
[Termination "francesco_visen ha vinto per abbandono"]

1. Nf3 {[%clk 0:11:59.3]} 1... d5 {[%clk 0:11:46.3]} 2. d4 {[%clk 0:11:59.4]}
2... Nf6 {[%clk 0:11:41.7]} 3. g3 {[%clk 0:11:59.7]} 3... e6 {[%clk 0:11:30.4]}
4. Bg2 {[%clk 0:12:01.4]} 4... Nc6 {[%clk 0:11:24.8]} 5. c3 {[%clk 0:12:02.5]}
5... Bd6 {[%clk 0:11:19.3]} 6. Bg5 {[%clk 0:12:03.2]} 6... O-O {[%clk
0:11:12.5]} 7. Nbd2 {[%clk 0:12:04.1]} 7... h6 {[%clk 0:11:00.8]} 8. Bxf6 {[%clk
0:12:05.5]} 8... Qxf6 {[%clk 0:10:58.5]} 9. e4 {[%clk 0:12:07.1]} 9... Qd8
{[%clk 0:10:43.5]} 10. e5 {[%clk 0:12:04.2]} 10... Be7 {[%clk 0:10:39.5]} 11.
O-O {[%clk 0:12:05.9]} 11... a5 {[%clk 0:10:24.5]} 12. a3 {[%clk 0:12:00.1]}
12... Bd7 {[%clk 0:10:18.7]} 13. Qe2 {[%clk 0:11:50.4]} 13... a4 {[%clk
0:10:04.5]} 14. Rac1 {[%clk 0:11:50.4]} 14... Na5 {[%clk 0:09:43.2]} 15. Rfd1
{[%clk 0:11:40.8]} 15... c6 {[%clk 0:09:31.3]} 16. c4 {[%clk 0:11:37.1]} 16...
Qb6 {[%clk 0:08:37.9]} 17. Rc2 {[%clk 0:11:18.5]} 17... Nxc4 {[%clk 0:08:14]}
18. Nxc4 {[%clk 0:11:18.3]} 18... dxc4 {[%clk 0:08:05.5]} 19. Qxc4 {[%clk
0:11:16.8]} 19... Rfd8 {[%clk 0:07:51.2]} 20. Rcd2 {[%clk 0:11:08.3]} 20... Be8
{[%clk 0:07:42.9]} 21. h4 {[%clk 0:11:07]} 21... Ra5 {[%clk 0:07:16.8]} 22. g4
{[%clk 0:10:51.9]} 22... c5 {[%clk 0:07:07.7]} 23. g5 {[%clk 0:10:30.4]} 23...
hxg5 {[%clk 0:06:59.7]} 24. Nxg5 {[%clk 0:10:28.7]} 24... cxd4 {[%clk
0:06:47.2]} 25. Qd3 {[%clk 0:09:50.8]} 25... Bxg5 {[%clk 0:06:10]} 26. hxg5
{[%clk 0:09:49.3]} 26... Rxe5 {[%clk 0:06:03]} 27. Qg3 {[%clk 0:09:49.1]} 27...
Rf5 {[%clk 0:05:39]} 28. Be4 {[%clk 0:09:37.8]} 28... Rb5 {[%clk 0:05:26.1]} 29.
Qh4 {[%clk 0:09:21]} 29... g6 {[%clk 0:05:11.5]} 30. Kg2 {[%clk 0:09:11.9]}
30... Bc6 {[%clk 0:04:54.3]} 31. Rh1 {[%clk 0:09:00.6]} 31... Bxe4+ {[%clk
0:04:45.2]} 32. Qxe4 {[%clk 0:09:01.6]} 32... Rxg5+ {[%clk 0:04:32.2]} 33. Kf1
{[%clk 0:08:59.6]} 33... Rc8 {[%clk 0:04:10.6]} 34. Rc2 {[%clk 0:08:17.4]} 34...
Qb5+ {[%clk 0:03:45.1]} 35. Ke1 {[%clk 0:08:00.3]} 35... Re5 {[%clk 0:03:05.8]}
36. Rxc8+ {[%clk 0:07:57.9]} 36... Kg7 {[%clk 0:03:05.2]} 37. Qxe5+ {[%clk
0:07:20]} 37... Qxe5+ {[%clk 0:03:05.6]} 38. Kd2 {[%clk 0:07:12.4]} 38... Qf4+
{[%clk 0:02:53]} 39. Ke1 {[%clk 0:06:31.9]} 39... Qe4+ {[%clk 0:02:44.1]} 40.
Kd2 {[%clk 0:06:30.7]} 40... Qxh1 {[%clk 0:02:47]} 0-1

[Event "Un Rapid per cominciare!"]
[Site "Chess.com"]
[Date "2020.04.10"]
[Round "1"]
[White "Jody94"]
[Black "freudstein"]
[Result "0-1"]
[WhiteElo "977"]
[BlackElo "1372"]
[TimeControl "720+3"]
[EndTime "11:45:45 PDT"]
[Termination "freudstein ha vinto per abbandono"]

1. e4 {[%clk 0:12:01.1]} 1... e6 {[%clk 0:11:59.3]} 2. d4 {[%clk 0:11:55.2]}
2... d5 {[%clk 0:11:59.8]} 3. e5 {[%clk 0:11:56.8]} 3... c5 {[%clk 0:12:00.8]}
4. Nf3 {[%clk 0:11:55.3]} 4... Nc6 {[%clk 0:12:00.9]} 5. dxc5 {[%clk 0:11:44.7]}
5... Bxc5 {[%clk 0:12:00.6]} 6. Bg5 {[%clk 0:10:57.3]} 6... Nge7 {[%clk
0:11:39.1]} 7. Bb5 {[%clk 0:10:37.5]} 7... Qc7 {[%clk 0:10:47.8]} 8. O-O {[%clk
0:10:20]} 8... O-O {[%clk 0:10:48.4]} 9. Re1 {[%clk 0:10:00.8]} 9... Ng6 {[%clk
0:10:43.2]} 10. Bxc6 {[%clk 0:09:20.7]} 10... bxc6 {[%clk 0:10:27.7]} 11. a3
{[%clk 0:08:48.3]} 11... Rb8 {[%clk 0:10:12.8]} 12. b4 {[%clk 0:08:33.8]} 12...
Be7 {[%clk 0:09:53.5]} 13. Nc3 {[%clk 0:08:31.5]} 13... Ba6 {[%clk 0:09:10.9]}
14. Qd4 {[%clk 0:07:58.1]} 14... h6 {[%clk 0:08:02.8]} 15. Bxe7 {[%clk
0:06:49.8]} 15... Qxe7 {[%clk 0:07:49.8]} 16. Rab1 {[%clk 0:06:26.9]} 16... Rfc8
{[%clk 0:07:40.1]} 17. Na4 {[%clk 0:05:38.4]} 17... Bb5 {[%clk 0:05:40.2]} 18.
c3 {[%clk 0:04:46.3]} 18... Bxa4 {[%clk 0:05:35.4]} 19. Qc5 {[%clk 0:03:43.2]}
19... Qxc5 {[%clk 0:05:24.9]} 20. bxc5 {[%clk 0:03:44.1]} 20... Bb5 {[%clk
0:05:14.2]} 21. Re2 {[%clk 0:03:24]} 21... Bxe2 {[%clk 0:05:14.3]} 22. Rxb8
{[%clk 0:03:22.7]} 22... Rxb8 {[%clk 0:05:14.6]} 23. Nd2 {[%clk 0:03:03.3]}
23... Nxe5 {[%clk 0:05:13.4]} 24. f4 {[%clk 0:02:57.3]} 24... Nc4 {[%clk
0:05:02.7]} 25. Kf2 {[%clk 0:02:41.6]} 0-1

[Event "Un Rapid per cominciare!"]
[Site "Chess.com"]
[Date "2020.04.10"]
[Round "1"]
[White "sirmale49"]
[Black "ottovolante"]
[Result "1-0"]
[WhiteElo "1389"]
[BlackElo "987"]
[TimeControl "720+3"]
[EndTime "11:46:17 PDT"]
[Termination "sirmale49 ha vinto per scaccomatto"]

1. e4 {[%clk 0:11:55.6]} 1... d6 {[%clk 0:11:59.3]} 2. f4 {[%clk 0:11:56.3]}
2... e6 {[%clk 0:11:53.2]} 3. Nf3 {[%clk 0:11:57.8]} 3... Nc6 {[%clk 0:11:52.3]}
4. Bb5 {[%clk 0:11:57]} 4... Bd7 {[%clk 0:11:52.1]} 5. O-O {[%clk 0:11:58.1]}
5... a6 {[%clk 0:11:53.9]} 6. Bc4 {[%clk 0:11:44.5]} 6... Be7 {[%clk 0:11:34.1]}
7. d4 {[%clk 0:11:42.9]} 7... h6 {[%clk 0:11:20.3]} 8. Nc3 {[%clk 0:11:43.4]}
8... Na5 {[%clk 0:10:26.3]} 9. Bd3 {[%clk 0:11:37.6]} 9... Nc6 {[%clk
0:10:04.3]} 10. d5 {[%clk 0:11:16.1]} 10... Nb4 {[%clk 0:10:03.3]} 11. Bc4
{[%clk 0:11:00.3]} 11... b5 {[%clk 0:09:54.9]} 12. Bb3 {[%clk 0:10:58.5]} 12...
a5 {[%clk 0:09:39]} 13. a3 {[%clk 0:10:59.2]} 13... Na6 {[%clk 0:09:39]} 14.
dxe6 {[%clk 0:10:50.4]} 14... Bxe6 {[%clk 0:09:39.8]} 15. Bxe6 {[%clk
0:10:50.8]} 15... fxe6 {[%clk 0:09:40.5]} 16. Nd4 {[%clk 0:10:45.7]} 16... Qd7
{[%clk 0:09:18.1]} 17. Qh5+ {[%clk 0:10:11.5]} 17... Kd8 {[%clk 0:09:16.6]} 18.
Qf7 {[%clk 0:09:35]} 18... Bf6 {[%clk 0:09:05.8]} 19. Qxd7+ {[%clk 0:09:09.9]}
19... Kxd7 {[%clk 0:09:06.1]} 20. Ndxb5 {[%clk 0:09:09.6]} 20... Nc5 {[%clk
0:09:00]} 21. e5 {[%clk 0:09:05.2]} 21... Be7 {[%clk 0:08:55.9]} 22. Rd1 {[%clk
0:08:49.2]} 22... h5 {[%clk 0:08:42.6]} 23. Be3 {[%clk 0:08:38.7]} 23... d5
{[%clk 0:08:28.5]} 24. f5 {[%clk 0:08:05.6]} 24... c6 {[%clk 0:08:22.4]} 25.
fxe6+ {[%clk 0:08:04.4]} 25... Kxe6 {[%clk 0:08:22.9]} 26. Nc7+ {[%clk
0:08:05.9]} 26... Kd7 {[%clk 0:08:19.3]} 27. Nxa8 {[%clk 0:08:05.9]} 27... Nh6
{[%clk 0:08:14]} 28. Nb6+ {[%clk 0:08:07.3]} 28... Kc7 {[%clk 0:08:14.4]} 29.
Nba4 {[%clk 0:07:46.8]} 29... Nxa4 {[%clk 0:07:53]} 30. Nxa4 {[%clk 0:07:46]}
30... Nf5 {[%clk 0:07:47.7]} 31. Bb6+ {[%clk 0:07:36]} 31... Kb7 {[%clk
0:07:47.3]} 32. Rf1 {[%clk 0:07:34.2]} 32... g6 {[%clk 0:07:42.4]} 33. Bxa5
{[%clk 0:07:25.6]} 33... Ra8 {[%clk 0:07:35.5]} 34. b4 {[%clk 0:07:19.6]} 34...
Ne3 {[%clk 0:07:17.4]} 35. Rf7 {[%clk 0:07:15.5]} 35... Re8 {[%clk 0:07:17.2]}
36. c3 {[%clk 0:06:39.2]} 36... Nc4 {[%clk 0:07:13.4]} 37. Rg7 {[%clk
0:06:17.9]} 37... Nxa5 {[%clk 0:07:08.9]} 38. bxa5 {[%clk 0:06:19.5]} 38... Kc8
{[%clk 0:07:01.8]} 39. Rxg6 {[%clk 0:06:19.3]} 39... Kd7 {[%clk 0:06:44.9]} 40.
Nb6+ {[%clk 0:06:11.6]} 40... Kc7 {[%clk 0:06:46]} 41. Na4 {[%clk 0:05:39.3]}
41... h4 {[%clk 0:06:40.1]} 42. Rg7 {[%clk 0:05:32.8]} 42... Kd7 {[%clk
0:06:27.2]} 43. Nc5+ {[%clk 0:05:19.1]} 43... Kc7 {[%clk 0:06:22]} 44. a6 {[%clk
0:05:13.7]} 44... Kb6 {[%clk 0:06:21.2]} 45. Ne6 {[%clk 0:05:01.7]} 45... Bc5+
{[%clk 0:06:18]} 46. Nxc5 {[%clk 0:05:01]} 46... Kxc5 {[%clk 0:06:19.1]} 47. a7
{[%clk 0:05:00.1]} 47... Ra8 {[%clk 0:06:20.6]} 48. Rb1 {[%clk 0:05:00.7]} 48...
Kc4 {[%clk 0:06:18.6]} 49. Rb8 {[%clk 0:05:01.9]} 49... Rxa7 {[%clk 0:06:15.6]}
50. Rxa7 {[%clk 0:05:00.2]} 50... Kxc3 {[%clk 0:06:17.3]} 51. Rc7 {[%clk
0:04:56.6]} 51... d4 {[%clk 0:06:17.3]} 52. Rxc6+ {[%clk 0:04:58.1]} 52... Kd3
{[%clk 0:06:19.2]} 53. Rd8 {[%clk 0:04:58.8]} 53... Ke4 {[%clk 0:06:20.4]} 54.
e6 {[%clk 0:04:57.5]} 54... d3 {[%clk 0:06:20.6]} 55. e7 {[%clk 0:04:58.6]}
55... Ke3 {[%clk 0:06:19.1]} 56. e8=Q+ {[%clk 0:04:59.5]} 56... Kd2 {[%clk
0:06:20.7]} 57. Rxd3+ {[%clk 0:04:57.1]} 57... Kxd3 {[%clk 0:06:18.5]} 58. Qd7+
{[%clk 0:04:57.1]} 58... Ke3 {[%clk 0:06:19.5]} 59. Re6+ {[%clk 0:04:58.7]}
59... Kf4 {[%clk 0:06:19.1]} 60. Qf7+ {[%clk 0:05:00.1]} 60... Kg4 {[%clk
0:06:20]} 61. Rg6+ {[%clk 0:04:59.6]} 61... Kh5 {[%clk 0:06:19.9]} 62. Rg8+
{[%clk 0:04:54.6]} 62... Kh6 {[%clk 0:06:13.4]} 63. Qg7+ {[%clk 0:04:55]} 63...
Kh5 {[%clk 0:06:14.5]} 64. Qg5# {[%clk 0:04:56.6]} 1-0

[Event "Un Rapid per cominciare!"]
[Site "Chess.com"]
[Date "2020.04.10"]
[Round "2"]
[White "Jody94"]
[Black "lucatarozzi"]
[Result "0-1"]
[WhiteElo "973"]
[BlackElo "1198"]
[TimeControl "720+3"]
[EndTime "11:52:29 PDT"]
[Termination "lucatarozzi ha vinto per scaccomatto"]

1. e4 {[%clk 0:12:02.9]} 1... e5 {[%clk 0:11:53.8]} 2. Nf3 {[%clk 0:12:03.1]}
2... Nc6 {[%clk 0:11:52.2]} 3. Bc4 {[%clk 0:12:02.1]} 3... d6 {[%clk 0:11:50]}
4. h3 {[%clk 0:11:43]} 4... Nd4 {[%clk 0:11:47.5]} 5. Ng5 {[%clk 0:11:29.6]}
5... Qxg5 {[%clk 0:11:47.2]} 6. d3 {[%clk 0:10:51.1]} 6... Qxg2 {[%clk 0:11:48]}
7. c3 {[%clk 0:10:23.7]} 7... Nf3+ {[%clk 0:11:48]} 8. Ke2 {[%clk 0:10:14.7]}
8... Bxh3 {[%clk 0:11:38.6]} 9. Rf1 {[%clk 0:09:50.2]} 9... Bg4 {[%clk
0:11:34.4]} 10. Qb3 {[%clk 0:08:55.4]} 10... Nd4+ {[%clk 0:11:33]} 11. Ke1
{[%clk 0:08:19.5]} 11... Nxb3 {[%clk 0:11:32.3]} 12. axb3 {[%clk 0:08:21.2]}
12... Qf3 {[%clk 0:11:28.4]} 13. Kd2 {[%clk 0:08:04.5]} 13... Qe2# {[%clk
0:11:28.7]} 0-1